fUSD/lending_fUSD_20240420
["ID","MTS","AMOUNT","RATE_DAILY","PERIOD"]
[323017521,1713592234631,-500.0,0.00015068,2]
[323017522,1713592234642,-500.0,0.00015068,2]
[323017523,1713592234653,-500.0,0.00015068,2]
[323017524,1713592234663,-594.74,0.00015068,2]
[323017525,1713592234674,-500.0,0.00015068,2]
[323017526,1713592234685,-500.0,0.00015068,2]
[323017527,1713592234695,-500.0,0.00015068,2]
[323017528,1713592234705,-500.0,0.00015068,2]
[323017529,1713592234717,-500.0,0.00015068,2]
[323017530,1713592234729,-505.66,0.00015068,2]
[323017531,1713592234740,-500.0,0.00015068,2]
[323017532,1713592234750,-500.0,0.00015068,2]
[323017533,1713592234760,-500.0,0.00015068,2]
[323017534,1713592234770,-500.0,0.00015068,2]
[323017535,1713592234781,-500.0,0.00015068,2]
[323017536,1713592234791,-500.0,0.00015068,2]
[323017537,1713592235551,-500.0,0.00015068,2]
[323017538,1713592235572,-598.22,0.00015068,2]
[323017539,1713592235604,-500.0,0.00015068,2]
[323017540,1713592235622,-500.0,0.00015068,2]
[323017541,1713592235631,-500.0,0.00015068,2]
[323017542,1713592235641,-500.0,0.00015068,2]
[323017543,1713592235650,-712.4,0.00015068,2]
[323017544,1713592235660,-500.0,0.00015068,2]
[323017545,1713592235669,-500.0,0.00015068,2]
[323017546,1713592235679,-500.0,0.00015068,2]
[323017547,1713592235689,-500.0,0.00015068,2]
[323017548,1713592235698,-695.21,0.00015068,2]
[323017549,1713592235707,-706.3,0.00015068,2]
[323017550,1713592235717,-500.0,0.00015068,2]
[323017551,1713592235726,-500.0,0.00015068,2]
[323017552,1713592235736,-554.98,0.00015068,2]
[323017553,1713592235746,-500.0,0.00015068,2]
[323017554,1713592235756,-500.0,0.00015068,2]
[323017555,1713592235765,-500.0,0.00015068,2]
[323017556,1713592235775,-502.85408837,0.00015068,2]
[323017557,1713592235785,-695.4,0.00015068,2]
[323017558,1713592235794,-797.96,0.00015068,2]
[323017559,1713592235804,-500.0,0.00015068,2]
[323017560,1713592235814,-500.0,0.00015068,2]
[323017561,1713592235824,-500.0,0.00015068,2]
[323017562,1713592235833,-500.0,0.00015068,2]
[323017563,1713592235842,-500.0,0.00015068,2]
[323017564,1713592235852,-500.0,0.00015068,2]
[323017565,1713592235862,-500.0,0.00015068,2]
[323017566,1713592235872,-500.0,0.00015068,2]
[323017567,1713592235881,-500.0,0.00015068,2]
[323017568,1713592235891,-923.28,0.00015068,2]
[323017569,1713592235900,-500.0,0.00015068,2]
[323017570,1713592235910,-628.83,0.00015068,2]
[323017571,1713592235921,-500.0,0.00015068,2]
[323017572,1713592235930,-500.0,0.00015068,2]
[323017573,1713592235940,-194.34484669,0.00015068,2]
[323017574,1713592235949,-500.0,0.00015068,2]
[323017575,1713592235959,-500.0,0.00015068,2]
[323017576,1713592235970,-524.45,0.00015068,2]
[323017577,1713592235980,-500.0,0.00015068,2]
[323017578,1713592235991,-500.0,0.00015068,2]
[323017579,1713592236001,-500.0,0.00015068,2]
[323017580,1713592236011,-500.0,0.00015068,2]
[323017581,1713592236020,-911.81,0.00015068,2]
[323017582,1713592236030,-500.0,0.00015068,2]
[323017583,1713592236040,-547.4,0.00015068,2]
[323017584,1713592236049,-500.0,0.00015068,2]
[323017585,1713592236059,-500.0,0.00015068,2]
[323017586,1713592236069,-500.0,0.00015068,2]
[323017587,1713592236078,-611.2,0.00015068,2]
[323017588,1713592236088,-500.0,0.00015068,2]
[323017589,1713592236098,-500.0,0.00015068,2]
[323017590,1713592236109,-500.0,0.00015068,2]
[323017591,1713592236119,-554.61,0.00015068,2]
[323017592,1713592236129,-500.0,0.00015068,2]
[323017593,1713592236138,-500.0,0.00015068,2]
[323017594,1713592236149,-641.54478275,0.00015068,2]
[323017595,1713592236159,-500.0,0.00015068,2]
[323017596,1713592236169,-500.0,0.00015068,2]
[323017597,1713592236178,-500.0,0.00015068,2]
[323017598,1713592236188,-500.0,0.00015068,2]
[323017599,1713592236198,-500.0,0.00015068,2]
[323017600,1713592236208,-817.35,0.00015068,2]
[323017601,1713592236218,-500.0,0.00015068,2]
[323017602,1713592236228,-708.95,0.00015068,2]
[323017603,1713592236238,-500.0,0.00015068,2]
[323017604,1713592236248,-500.0,0.00015068,2]
[323017605,1713592236264,-500.0,0.00015068,2]
[323017606,1713592236273,-500.0,0.00015068,2]
[323017607,1713592236282,-500.0,0.00015068,2]
[323017608,1713592236292,-500.0,0.00015068,2]
[323017609,1713592236302,-500.0,0.00015068,2]
[323017610,1713592236311,-500.0,0.00015068,2]
[323017611,1713592236321,-500.0,0.00015068,2]
[323017612,1713592236332,-500.0,0.00015068,2]
[323017613,1713592236341,-639.32,0.00015068,2]
[323017614,1713592236353,-642.12,0.00015068,2]
[323017615,1713592236362,-500.0,0.00015068,2]
[323017616,1713592236372,-500.0,0.00015068,2]
[323017617,1713592236382,-567.86,0.00015068,2]
[323017618,1713592236391,-500.0,0.00015068,2]
[323017619,1713592236400,-500.0,0.00015068,2]
[323017620,1713592236410,-500.0,0.00015068,2]
[323017621,1713592236419,-500.0,0.00015068,2]
[323017622,1713592236433,-1256.28,0.00015068,2]
[323017623,1713592236442,-715.34,0.00015068,2]
[323017624,1713592236452,-500.0,0.00015068,2]
[323017625,1713592236461,-955.12,0.00015068,2]
[323017626,1713592236471,-643.75,0.00015068,2]
[323017627,1713592236480,-661.09,0.00015068,2]
[323017628,1713592236490,-500.0,0.00015068,2]
[323017629,1713592236499,-500.0,0.00015068,2]
[323017630,1713592236510,-1677.53,0.00015068,2]
[323017631,1713592236519,-562.54,0.00015068,2]
[323017632,1713592236529,-547.74,0.00015068,2]
[323017633,1713592236539,-500.0,0.00015068,2]
[323017634,1713592236549,-530.92,0.00015068,2]
[323017635,1713592236558,-500.0,0.00015068,2]
[323017636,1713592236568,-500.0,0.00015068,2]
[323017637,1713592236578,-500.0,0.00015068,2]
[323017638,1713592236587,-500.0,0.00015068,2]
[323017639,1713592236597,-853.28,0.00015068,2]
[323017640,1713592236609,-823.88,0.00015068,2]
[323017641,1713592236618,-577.92,0.00015068,2]
[323017642,1713592236627,-500.0,0.00015068,2]
[323017643,1713592236638,-872.87,0.00015068,2]
[323017644,1713592236648,-500.0,0.00015068,2]
[323017645,1713592236658,-500.0,0.00015068,2]
[323017646,1713592236667,-791.88,0.00015068,2]
[323017647,1713592236676,-500.0,0.00015068,2]
[323017648,1713592236686,-663.96,0.00015068,2]
[323017649,1713592236695,-500.0,0.00015068,2]
[323017650,1713592236705,-686.26,0.00015068,2]
[323017651,1713592236715,-500.0,0.00015068,2]
[323017652,1713592236725,-1133.41,0.00015068,2]
[323017653,1713592236734,-500.0,0.00015068,2]
[323017654,1713592236744,-500.0,0.00015068,2]
[323017655,1713592236755,-793.59,0.00015068,2]
[323017656,1713592236765,-500.0,0.00015068,2]
[323017657,1713592236774,-500.0,0.00015068,2]
[323017658,1713592236784,-679.5,0.00015068,2]
[323017659,1713592236794,-500.0,0.00015068,2]
[323017660,1713592236803,-500.0,0.00015068,2]
[323017661,1713592236813,-500.0,0.00015068,2]
[323017662,1713592236823,-500.0,0.00015068,2]
[323017663,1713592236832,-500.0,0.00015068,2]
[323017664,1713592236842,-500.0,0.00015068,2]
[323017665,1713592236853,-500.0,0.00015068,2]
[323017666,1713592236862,-500.0,0.00015068,2]
[323017667,1713592236871,-507.62,0.00015068,2]
[323017668,1713592236881,-500.0,0.00015068,2]
[323017669,1713592236891,-729.94,0.00015068,2]
[323017670,1713592236900,-640.29,0.00015068,2]
[323017671,1713592236910,-500.0,0.00015068,2]
[323017672,1713592236920,-1368.13,0.00015068,2]
[323017673,1713592236931,-500.0,0.00015068,2]
[323017674,1713592236940,-553.67,0.00015068,2]
[323017675,1713592236950,-500.0,0.00015068,2]
[323017676,1713592236959,-500.0,0.00015068,2]
[323017677,1713592236969,-506.72,0.00015068,2]
[323017678,1713592236978,-500.0,0.00015068,2]
[323017679,1713592236988,-500.0,0.00015068,2]
[323017680,1713592236997,-500.0,0.00015068,2]
[323017681,1713592237006,-500.0,0.00015068,2]
[323017682,1713592237016,-916.34,0.00015068,2]
[323017683,1713592237026,-500.0,0.00015068,2]
[323017684,1713592237035,-500.0,0.00015068,2]
[323017685,1713592237045,-500.0,0.00015068,2]
[323017686,1713592237054,-604.08,0.00015068,2]
[323017687,1713592237064,-500.0,0.00015068,2]
[323017688,1713592237073,-500.0,0.00015068,2]
[323017689,1713592237083,-780.72,0.00015068,2]
[323017690,1713592237092,-500.0,0.00015068,2]
[323017691,1713592237103,-596.75,0.00015068,2]
[323017692,1713592237112,-545.98,0.00015068,2]
[323017693,1713592237121,-500.0,0.00015068,2]
[323017694,1713592237131,-500.0,0.00015068,2]
[323017695,1713592237141,-500.0,0.00015068,2]
[323017696,1713592237150,-726.37,0.00015068,2]
[323017697,1713592237160,-639.88,0.00015068,2]
[323017698,1713592237170,-511.34,0.00015068,2]
[323017699,1713592237179,-731.57,0.00015068,2]
[323017700,1713592237189,-500.0,0.00015068,2]
[323017701,1713592237198,-500.0,0.00015068,2]
[323017702,1713592237208,-639.5,0.00015068,2]
[323017703,1713592237217,-541.5,0.00015068,2]
[323017704,1713592237226,-500.0,0.00015068,2]
[323017705,1713592237236,-500.0,0.00015068,2]
[323017706,1713592237245,-500.0,0.00015068,2]
[323017707,1713592237257,-500.0,0.00015068,2]
[323017708,1713592237267,-707.28,0.00015068,2]
[323017709,1713592237276,-500.0,0.00015068,2]
[323017710,1713592237285,-500.0,0.00015068,2]
[323017711,1713592237295,-517.25,0.00015068,2]
[323017712,1713592237305,-500.0,0.00015068,2]
[323017713,1713592237314,-500.0,0.00015068,2]
[323017714,1713592237324,-500.0,0.00015068,2]
[323017715,1713592237333,-500.0,0.00015068,2]
[323017716,1713592237344,-509.2,0.00015068,2]
[323017717,1713592237354,-732.97,0.00015068,2]
[323017718,1713592237364,-500.0,0.00015068,2]
[323017719,1713592237374,-500.0,0.00015068,2]
[323017720,1713592237383,-500.0,0.00015068,2]
[323017721,1713592237393,-967.5,0.00015068,2]
[323017722,1713592237402,-500.0,0.00015068,2]
[323017723,1713592237411,-500.0,0.00015068,2]
[323017724,1713592237421,-500.0,0.00015068,2]
[323017725,1713592237430,-500.0,0.00015068,2]
[323017726,1713592237440,-509.25,0.00015068,2]
[323017727,1713592237449,-1077.71,0.00015068,2]
[323017728,1713592237458,-500.0,0.00015068,2]
[323017729,1713592237468,-500.0,0.00015068,2]
[323017730,1713592237477,-507.28,0.00015068,2]
[323017731,1713592237486,-727.84,0.00015068,2]
[323017732,1713592237496,-500.0,0.00015068,2]
[323017733,1713592237505,-500.0,0.00015068,2]
[323017734,1713592237514,-500.0,0.00015068,2]
[323017735,1713592237524,-500.0,0.00015068,2]
[323017736,1713592237533,-733.5,0.00015068,2]
[323017737,1713592237543,-500.0,0.00015068,2]
[323017738,1713592237552,-941.43,0.00015068,2]
[323017739,1713592237561,-1603.88,0.00015068,2]
[323017740,1713592237570,-500.0,0.00015068,2]
[323017741,1713592237579,-1141.47,0.00015068,2]
[323017742,1713592237588,-500.0,0.00015068,2]
[323017743,1713592237597,-500.0,0.00015068,2]
[323017744,1713592237608,-500.0,0.00015068,2]
[323017745,1713592237617,-500.0,0.00015068,2]
[323017746,1713592237626,-500.0,0.00015068,2]
[323017747,1713592237635,-500.0,0.00015068,2]
[323017748,1713592237645,-500.0,0.00015068,2]
[323017749,1713592237654,-500.0,0.00015068,2]
[323017750,1713592237664,-1097.42,0.00015068,2]
[323017751,1713592237673,-884.41,0.00015068,2]
[323017752,1713592237683,-500.0,0.00015068,2]
[323017753,1713592237692,-500.0,0.00015068,2]
[323017754,1713592237702,-1309.44,0.00015068,2]
[323017755,1713592237711,-500.0,0.00015068,2]
[323017756,1713592237721,-500.0,0.00015068,2]
[323017757,1713592237730,-799.25,0.00015068,2]
[323017758,1713592237740,-500.0,0.00015068,2]
[323017759,1713592237750,-656.65,0.00015068,2]
[323017760,1713592237762,-1516.92,0.00015068,2]
[323017761,1713592237771,-500.0,0.00015068,2]
[323017762,1713592237781,-500.0,0.00015068,2]
[323017763,1713592237791,-500.0,0.00015068,2]
[323017764,1713592237800,-1603.54,0.00015068,2]
[323017765,1713592237810,-670.85,0.00015068,2]
[323017766,1713592237820,-500.0,0.00015068,2]
[323017767,1713592237829,-500.0,0.00015068,2]
[323017768,1713592237838,-755.27,0.00015068,2]
[323017769,1713592237849,-861.77,0.00015068,2]
[323017770,1713592237861,-151.0,0.00015068,2]
[323017771,1713592237875,-866.02,0.00015068,2]
[323017772,1713592237959,-500.0,0.00015068,2]
[323017773,1713592237969,-153.994026,0.00015068,2]
[323017774,1713592237980,-500.0,0.00015068,2]
[323017775,1713592237993,-282.396864,0.00015068,2]
[323017776,1713592238006,-1073.34,0.00015068,2]
[323017777,1713592238016,-153.994026,0.00015068,2]
[323017778,1713592238026,-151.0,0.00015068,2]
[323017779,1713592238035,-500.0,0.00015068,2]
[323017780,1713592238045,-622.24,0.00015068,2]
[323017781,1713592238054,-510.50575539,0.00015068,2]
[323017782,1713592238063,-500.0,0.00015068,2]
[323017783,1713592238073,-500.0,0.00015068,2]
[323017784,1713592238083,-589.94,0.00015068,2]
[323017785,1713592238093,-500.0,0.00015068,2]
[323017786,1713592238103,-282.396864,0.00015068,2]
[323017787,1713592238112,-151.0,0.00015068,2]
[323017788,1713592238121,-987.1,0.00015068,2]
[323017789,1713592238130,-500.0,0.00015068,2]
[323017790,1713592238140,-500.0,0.00015068,2]
[323017791,1713592238150,-745.13,0.00015068,2]
[323017792,1713592238159,-1162.58,0.00015068,2]
[323017793,1713592238169,-500.0,0.00015068,2]
[323017794,1713592238178,-678.72,0.00015068,2]
[323017795,1713592238189,-500.0,0.00015068,2]
[323017796,1713592238198,-522.29149905,0.00015068,2]
[323017798,1713592238208,-682.94,0.00015068,2]
[323017799,1713592238217,-1653.03,0.00015068,2]
[323017802,1713592238227,-633.64,0.00015068,2]
[323017805,1713592238236,-500.0,0.00015068,2]
[323017807,1713592238246,-500.0,0.00015068,2]
[323017809,1713592238258,-811.236803,0.00015068,2]
[323017812,1713592238268,-500.0,0.00015068,2]
[323017814,1713592238278,-1517.59,0.00015068,2]
[323017816,1713592238287,-947.11,0.00015068,2]
[323017817,1713592238298,-811.236803,0.00015068,2]
[323017819,1713592238308,-654.74,0.00015068,2]
[323017821,1713592238317,-500.0,0.00015068,2]
[323017822,1713592238326,-633.02,0.00015068,2]
[323017823,1713592238337,-927.95,0.00015068,2]
[323017824,1713592238346,-492.63,0.00015068,2]
[323017825,1713592238358,-1391.13,0.00015068,2]
[323017826,1713592238368,-500.0,0.00015068,2]
[323017827,1713592238377,-500.0,0.00015068,2]
[323017828,1713592238387,-500.0,0.00015068,2]
[323017829,1713592238397,-1331.98,0.00015068,2]
[323017830,1713592238406,-890.5,0.00015068,2]
[323017831,1713592238416,-1061.55,0.00015068,2]
[323017832,1713592238426,-538.35,0.00015068,2]
[323017833,1713592238436,-500.0,0.00015068,2]
[323017834,1713592238446,-551.45,0.00015068,2]
[323017835,1713592238455,-237.24158,0.00015068,2]
[323017836,1713592238465,-588.26,0.00015068,2]
[323017837,1713592238474,-1157.82,0.00015068,2]
[323017838,1713592238484,-178.314559,0.00015068,2]
[323017839,1713592238493,-500.0,0.00015068,2]
[323017840,1713592238503,-602.84,0.00015068,2]
[323017841,1713592238513,-237.24158,0.00015068,2]
[323017842,1713592238522,-151.0,0.00015068,2]
[323017843,1713592238532,-222.559406,0.00015068,2]
[323017844,1713592238543,-556.8,0.00015068,2]
[323017845,1713592238552,-362.123824,0.00015068,2]
[323017846,1713592238562,-419.82773061,0.00015068,2]
[323017847,1713592238571,-178.314559,0.00015068,2]
[323017848,1713592238581,-500.0,0.00015068,2]
[323017849,1713592238591,-500.0,0.00015068,2]
[323017850,1713592238601,-222.559406,0.00015068,2]
[323017851,1713592238611,-528.25,0.00015068,2]
[323017852,1713592238620,-1507.68,0.00015068,2]
[323017853,1713592238629,-362.123824,0.00015068,2]
[323017854,1713592238638,-500.0,0.00015068,2]
[323017855,1713592238648,-500.0,0.00015068,2]
[323017856,1713592238657,-1322.87,0.00015068,2]
[323017857,1713592238667,-623.55,0.00015068,2]
[323017858,1713592238677,-500.0,0.00015068,2]
[323017859,1713592238687,-500.0,0.00015068,2]
[323017860,1713592238696,-500.0,0.00015068,2]
[323017861,1713592238706,-547.23,0.00015068,2]
[323017862,1713592238716,-779.25,0.00015068,2]
[323017863,1713592238725,-500.0,0.00015068,2]
[323017864,1713592238735,-500.0,0.00015068,2]
[323017865,1713592238744,-500.0,0.00015068,2]
[323017866,1713592238753,-151.0,0.00015068,2]
[323017867,1713592238762,-500.0,0.00015068,2]
[323017868,1713592238772,-1195.48,0.00015068,2]
[323017869,1713592238782,-500.0,0.00015068,2]
[323017870,1713592238791,-151.0,0.00015068,2]
[323017871,1713592238801,-500.0,0.00015068,2]
[323017872,1713592238810,-500.0,0.00015068,2]
[323017874,1713592238819,-500.0,0.00015068,2]
[323017876,1713592238828,-151.0,0.00015068,2]
[323017877,1713592238837,-500.0,0.00015068,2]
[323017878,1713592238847,-1059.71,0.00015068,2]
[323017879,1713592238858,-1276.76,0.00015068,2]
[323017880,1713592238867,-151.0,0.00015068,2]
[323017881,1713592238876,-1740.53,0.00015068,2]
[323017882,1713592238886,-902.0,0.00015068,2]
[323017883,1713592238896,-500.0,0.00015068,2]
[323017884,1713592238905,-574.23,0.00015068,2]
[323017885,1713592238915,-2348.63,0.00015068,2]
[323017886,1713592238924,-500.0,0.00015068,2]
[323017887,1713592238934,-294.464797,0.00015068,2]
[323017888,1713592238944,-522.5,0.00015068,2]
[323017889,1713592238954,-500.0,0.00015068,2]
[323017890,1713592238964,-500.0,0.00015068,2]
[323017891,1713592238973,-294.464797,0.00015068,2]
[323017892,1713592238983,-500.0,0.00015068,2]
[323017893,1713592238993,-542.8,0.00015068,2]
[323017894,1713592239003,-151.0,0.00015068,2]
[323017895,1713592239013,-1132.06,0.00015068,2]
[323017896,1713592239023,-662.17,0.00015068,2]
[323017897,1713592239033,-948.1,0.00015068,2]
[323017898,1713592239044,-601.84,0.00015068,2]
[323017899,1713592239053,-1927.25,0.00015068,2]
[323017900,1713592239063,-334.95461272,0.00015068,2]
[323017901,1713592239072,-844.189566,0.00015068,2]
[323017902,1713592239082,-913.69,0.00015068,2]
[323017903,1713592239092,-2475.230557,0.00015068,2]
[323017904,1713592239101,-500.0,0.00015068,2]
[323017905,1713592239112,-574.52,0.00015068,2]
[323017906,1713592239120,-500.0,0.00015068,2]
[323017907,1713592239129,-151.0,0.00015068,2]
[323017908,1713592239139,-151.0,0.00015068,2]
[323017909,1713592239149,-500.0,0.00015068,2]
[323017910,1713592239159,-844.189566,0.00015068,2]
[323017911,1713592239169,-500.0,0.00015068,2]
[323017912,1713592239179,-500.0,0.00015068,2]
[323017913,1713592239188,-539.01,0.00015068,2]
[323017914,1713592239198,-624.51,0.00015068,2]
[323017915,1713592239208,-500.0,0.00015068,2]
[323017916,1713592239217,-1008.81,0.00015068,2]
[323017917,1713592239227,-2309.15,0.00015068,2]
[323017918,1713592239236,-500.0,0.00015068,2]
[323017919,1713592239246,-500.0,0.00015068,2]
[323017920,1713592239259,-500.0,0.00015068,2]
[323017921,1713592239268,-151.0,0.00015068,2]
[323017922,1713592239277,-1413.98,0.00015068,2]
[323017923,1713592239287,-500.0,0.00015068,2]
[323017924,1713592239297,-5435.24,0.00015068,2]
[323017925,1713592239307,-3815.88,0.00015068,2]
[323017926,1713592239316,-1367.59,0.00015068,2]
[323017927,1713592239326,-151.0,0.00015068,2]
[323017928,1713592239336,-526.55,0.00015068,2]
[323017929,1713592239345,-500.0,0.00015068,2]
[323017930,1713592239355,-500.0,0.00015068,2]
[323017931,1713592239365,-500.0,0.00015068,2]
[323017932,1713592239374,-500.0,0.00015068,2]
[323017933,1713592239383,-151.0,0.00015068,2]
[323017934,1713592239393,-1292.66,0.00015068,2]
[323017935,1713592239403,-500.0,0.00015068,2]
[323017936,1713592239413,-500.0,0.00015068,2]
[323017937,1713592239422,-500.0,0.00015068,2]
[323017938,1713592239431,-500.0,0.00015068,2]
[323017939,1713592239440,-500.0,0.00015068,2]
[323017940,1713592239450,-20694.86,0.00015068,2]
[323017941,1713592239459,-500.0,0.00015068,2]
[323017942,1713592239468,-500.0,0.00015068,2]
[323017943,1713592239477,-500.0,0.00015068,2]
[323017944,1713592239487,-500.0,0.00015068,2]
[323017945,1713592239496,-500.0,0.00015068,2]
[323017946,1713592239505,-1261.83,0.00015068,2]
[323017947,1713592239514,-813.07,0.00015068,2]
[323017948,1713592239523,-500.0,0.00015068,2]
[323017949,1713592239532,-772.36,0.00015068,2]
[323017950,1713592239541,-500.0,0.00015068,2]
[323017951,1713592239550,-1348.85,0.00015068,2]
[323017952,1713592239560,-620.291612,0.00015068,2]
[323017953,1713592239569,-500.0,0.00015068,2]
[323017954,1713592239579,-22419.54,0.00015068,2]
[323017955,1713592239588,-500.0,0.00015068,2]
[323017956,1713592239597,-1534.31,0.00015068,2]
[323017957,1713592239607,-500.0,0.00015068,2]
[323017958,1713592239617,-528.47,0.00015068,2]
[323017959,1713592239627,-500.0,0.00015068,2]
[323017960,1713592239638,-1534.1,0.00015068,2]
[323017961,1713592239647,-620.291612,0.00015068,2]
[323017962,1713592239656,-1012.74,0.00015068,2]
[323017963,1713592239665,-500.0,0.00015068,2]
[323017964,1713592239674,-1832.0,0.00015068,2]
[323017965,1713592239684,-1760.49,0.00015068,2]
[323017966,1713592239693,-3076.99,0.00015068,2]
[323017967,1713592239702,-500.0,0.00015068,2]
[323017968,1713592239711,-500.0,0.00015068,2]
[323017969,1713592239721,-1698.88,0.00015068,2]
[323017970,1713592239730,-500.0,0.00015068,2]
[323017971,1713592239740,-151.0,0.00015068,2]
[323017972,1713592239749,-500.0,0.00015068,2]
[323017973,1713592239758,-879.94,0.00015068,2]
[323017974,1713592239767,-151.321084,0.00015068,2]
[323017975,1713592239776,-500.0,0.00015068,2]
[323017976,1713592239786,-151.0,0.00015068,2]
[323017977,1713592239795,-2043.72,0.00015068,2]
[323017978,1713592239805,-500.0,0.00015068,2]
[323017979,1713592239814,-500.0,0.00015068,2]
[323017980,1713592239823,-500.0,0.00015068,2]
[323017981,1713592239832,-500.0,0.00015068,2]
[323017982,1713592239841,-2453.32,0.00015068,2]
[323017983,1713592239851,-500.0,0.00015068,2]
[323017984,1713592239861,-500.0,0.00015068,2]
[323017985,1713592239871,-830.12,0.00015068,2]
[323017986,1713592239880,-500.0,0.00015068,2]
[323017987,1713592239890,-1371.02,0.00015068,2]
[323017988,1713592239899,-500.0,0.00015068,2]
[323017989,1713592239909,-151.0,0.00015068,2]
[323017990,1713592239918,-500.0,0.00015068,2]
[323017991,1713592239927,-500.0,0.00015068,2]
[323017992,1713592239936,-679.8,0.00015068,2]
[323017993,1713592239946,-1610.21,0.00015068,2]
[323017994,1713592239956,-500.0,0.00015068,2]
[323017995,1713592239966,-500.0,0.00015068,2]
[323017996,1713592239976,-500.0,0.00015068,2]
[323017997,1713592239986,-1147.37,0.00015068,2]
[323017998,1713592239995,-1379.12,0.00015068,2]
[323017999,1713592240005,-500.0,0.00015068,2]
[323018000,1713592240014,-591.33,0.00015068,2]
[323018001,1713592240024,-880.94,0.00015068,2]
[323018002,1713592240033,-151.0,0.00015068,2]
[323018003,1713592240043,-1837.55,0.00015068,2]
[323018004,1713592240052,-500.0,0.00015068,2]
[323018005,1713592240062,-500.0,0.00015068,2]
[323018006,1713592240072,-500.98414493,0.00015068,2]
[323018007,1713592240081,-14950.61,0.00015068,2]
[323018008,1713592240091,-2266.82,0.00015068,2]
[323018009,1713592240101,-693.93,0.00015068,2]
[323018010,1713592240111,-991.06,0.00015068,2]
[323018011,1713592240121,-692.74,0.00015068,2]
[323018012,1713592240131,-1203.79,0.00015068,2]
[323018013,1713592240140,-1159.46,0.00015068,2]
[323018014,1713592240149,-947.12,0.00015068,2]
[323018015,1713592240159,-638.74115379,0.00015068,2]
[323018016,1713592240168,-500.0,0.00015068,2]
[323018017,1713592240178,-2294.99,0.00015068,2]
[323018018,1713592240188,-293.08659036,0.00015068,2]
[323018019,1713592240197,-250.32018949,0.00015068,2]
[323018020,1713592240206,-500.0,0.00015068,2]
[323018021,1713592240216,-500.0,0.00015068,2]
[323018022,1713592240225,-500.0,0.00015068,2]
[323018023,1713592240235,-2185.86,0.00015068,2]
[323018024,1713592240244,-914.1,0.00015068,2]
[323018025,1713592240255,-500.0,0.00015068,2]
[323018026,1713592240265,-1704.66,0.00015068,2]
[323018027,1713592240274,-542.12,0.00015068,2]
[323018028,1713592240284,-500.0,0.00015068,2]
[323018029,1713592240294,-1650.39,0.00015068,2]
[323018030,1713592240303,-1202.89,0.00015068,2]
[323018031,1713592240312,-559.59,0.00015068,2]
[323018032,1713592240321,-658.05,0.00015068,2]
[323018033,1713592240331,-500.0,0.00015068,2]
[323018034,1713592240340,-4909.01,0.00015068,2]
[323018035,1713592240349,-500.0,0.00015068,2]